Workbook

Sheet Computations
B1: Computations
B3: Let X and Y have the joint distribution:
B4: Note that X and Y are independent!
B6: Determine E[X], E[Y], Var(X), Var(Y), | H6: X
B7: StdDev(X), StdDev(Y), Cov(X,Y), Corr(X,Y), | H7: 2 | I7: 3 | J7: 5 | K7: 15
B8: E[X+Y[, Var(X+Y), and StdDev(X+Y). | F8: Y | G8: 10 | H8: =$L8*H$11 -> 0.06 | I8: 0.09 | J8: 0.075 | K8: 0.075 | L8: 0.3
B9: (Of course, you can build any intermediate | G9: 20 | H9: 0.08 | I9: 0.12 | J9: 0.1 | K9: 0.1 | L9: 0.4
B10: tables you find useful.) | G10: 30 | H10: 0.06 | I10: 0.09 | J10: 0.075 | K10: 0.075 | L10: 0.3
H11: 0.2 | I11: 0.3 | J11: 0.25 | K11: 0.25
B13: answers | E13: formulas
B14: 6.3 | C14: E[X] | E14: =SUMPRODUCT(I15:I18,J15:J18) -> 6.3 | I14: x | J14: Pr(X=x) | L14: x+y | M14: Pr(X+Y=x+y)
B15: 20 | C15: E[Y] | E15: =SUMPRODUCT(I21:I23,J21:J23) -> 20 | I15: 2 | J15: 0.2 | L15: 12 | M15: =H8 -> 0.06
B16: 26.31 | C16: Var(X) | E16: =SUMPRODUCT(I15:I18^2,J15:J18)-E14^2 -> 26.31 | I16: 3 | J16: 0.3 | L16: 13 | M16: =I8 -> 0.09
B17: 60 | C17: Var(Y) | E17: =SUMPRODUCT(I21:I23^2,J21:J23)-E15^2 -> 60 | I17: 5 | J17: 0.25 | L17: 15 | M17: =J8 -> 0.075
B18: 5.129327441 | C18: StdDev(X) | E18: =SQRT(E16) -> 5.129327441 | I18: 15 | J18: 0.25 | L18: 22 | M18: =H9 -> 0.08
B19: 7.745966692 | C19: StdDev(Y) | E19: =SQRT(E17) -> 7.745966692 | L19: 23 | M19: =I9 -> 0.12
B20: 26.3 | C20: E[X+Y] | E20: =SUMPRODUCT(L15:L24,M15:M24) -> 26.3 | I20: y | J20: Pr(Y=y) | L20: 25 | M20: =K8+J9 -> 0.175
B21: 86.31 | C21: Var(X+Y) | E21: =SUMPRODUCT(L15:L24^2,M15:M24)-SUMPRODUCT(L15:L24,M15:M24)^2 -> 86.31 | F21: =E16+E17 -> 86.31 | I21: 10 | J21: 0.3 | L21: 32 | M21: =H10 -> 0.06
B22: 9.29031754 | C22: StdDev(X+Y) | E22: =SQRT(E21) -> 9.29031754 | I22: 20 | J22: 0.4 | L22: 33 | M22: =I10 -> 0.09
I23: 30 | J23: 0.3 | L23: 35 | M23: =K9+J10 -> 0.175
L24: 45 | M24: =K10 -> 0.075

Sheet Roulette
B1: Gambling with the Casino's Money
B3: Many casinos offer promotional deals which give a guest, possibly along with room and
B4: meal discounts, a quantity of special gambling chips. The special chips cannot be
B5: cashed in for real money, but can be used to place bets at the gambling tables.
B6: Winnings are paid in regular chips, which can be cashed in. (The casinos do this in
B7: order to "force" a guest to the gambling tables, and hope that, once the special chips
B8: are used up, the gambler will continue to play.)
B10: Assume you've been given 300 $1 special chips, and you choose to use them at the
B11: roulette table. Each time the wheel is spun, you bet one special chip on the "1-12"
B12: square (which has a probability of 12/38 of yielding you a payoff of $3, and 26/38 of
B13: yielding you nothing.)
B15: What is the expected value of the "real" chips you'll be holding after 300 plays? What is
B16: one standard-deviation's-worth of uncertainty in the value you'll be holding?
B19: Your profit from any one play is a random variable W with | H19: w | I19: Pr(W=w)
B20: the distribution: | H20: 0 | I20: =26/38 -> 0.6842105263
H21: 3 | I21: =1-I20 -> 0.3157894737
B22: E[W] = | D22: =SUMPRODUCT(H20:H21,I20:I21) -> 0.9473684211
B23: StdDev(W) = | D23: =SQRT(SUMPRODUCT(H20:H21^2,I20:I21)-D22^2) -> 1.394488558
B25: Let T be the sum of 300 independent, identically-distributed
B26: observations of W. Then
B28: number of plays | D28: =300 -> 300
B29: E[T] = | D29: =D28*D22 -> 284.2105263 | E29: (since T = W1 + W2 +…+ W300 is a sum of independent,
B30: StdDev(T) = | D30: =SQRT(D28)*D23 -> 24.15325033 | E30: identically-distributed random variables)
B33: The 300 plays are simulated, and the results tracked, below. (Each simulation
B34: run involves 300 spins of the roulette wheel.)
B36: =SUM(H37:H336) -> 306 | C36: total winnings | G36: play | H36: profit
G37: 1 | H37: =IF(RAND()<=12/38,3,0) -> 0
B38: =ADDRESS(ROW($B$36),COLUMN($B$36)) -> $B$36 | C38: monitored cell | G38: 2 | H38: =IF(RAND()<=12/38,3,0) -> 0
B39: 284.22483 | C39: mean | G39: 3 | H39: 0
B40: 24.14254771 | C40: sample standard deviation | G40: 4 | H40: 0
B41: 186 | C41: minimum | G41: 5 | H41: 0
B42: 390 | C42: maximum | G42: 6 | H42: 0
B43: 100000 | C43: number of simulation runs | G43: 7 | H43: 0
G44: 8 | H44: 0
G45: 9 | H45: 0
G46: 10 | H46: 3
G47: 11 | H47: 0
G48: 12 | H48: 3
G49: 13 | H49: 0
G50: 14 | H50: 3
G51: 15 | H51: 0
G52: 16 | H52: 0
G53: 17 | H53: 3
G54: 18 | H54: 0
G55: 19 | H55: 0
G56: 20 | H56: 3
G57: 21 | H57: 3
G58: 22 | H58: 3
G59: 23 | H59: 0
G60: 24 | H60: 3
G61: 25 | H61: 0
G62: 26 | H62: 0
G63: 27 | H63: 0
G64: 28 | H64: 0
G65: 29 | H65: 0
G66: 30 | H66: 0
G67: 31 | H67: 0
G68: 32 | H68: 0
G69: 33 | H69: 0
G70: 34 | H70: 3
G71: 35 | H71: 3
G72: 36 | H72: 0
G73: 37 | H73: 0
G74: 38 | H74: 0
G75: 39 | H75: 3
G76: 40 | H76: 0
G77: 41 | H77: 0
G78: 42 | H78: 0
G79: 43 | H79: 3
G80: 44 | H80: 0
G81: 45 | H81: 0
G82: 46 | H82: 0
G83: 47 | H83: 3
G84: 48 | H84: 0
G85: 49 | H85: 0
G86: 50 | H86: 0
G87: 51 | H87: 0
G88: 52 | H88: 3
G89: 53 | H89: 0
G90: 54 | H90: 0
G91: 55 | H91: 0
G92: 56 | H92: 0
G93: 57 | H93: 3
G94: 58 | H94: 0
G95: 59 | H95: 0
G96: 60 | H96: 0
G97: 61 | H97: 0
G98: 62 | H98: 3
G99: 63 | H99: 3
G100: 64 | H100: 0
G101: 65 | H101: 0
G102: 66 | H102: =IF(RAND()<=12/38,3,0) -> 3
G103: 67 | H103: 0
G104: 68 | H104: 0
G105: 69 | H105: 0
G106: 70 | H106: 3
G107: 71 | H107: 3
G108: 72 | H108: 3
G109: 73 | H109: 0
G110: 74 | H110: 0
G111: 75 | H111: 0
G112: 76 | H112: 0
G113: 77 | H113: 3
G114: 78 | H114: 0
G115: 79 | H115: 3
G116: 80 | H116: 0
G117: 81 | H117: 0
G118: 82 | H118: 3
G119: 83 | H119: 0
G120: 84 | H120: 3
G121: 85 | H121: 0
G122: 86 | H122: 3
G123: 87 | H123: 0
G124: 88 | H124: 3
G125: 89 | H125: 3
G126: 90 | H126: 3
G127: 91 | H127: 3
G128: 92 | H128: 3
G129: 93 | H129: 3
G130: 94 | H130: 3
G131: 95 | H131: 3
G132: 96 | H132: 3
G133: 97 | H133: 0
G134: 98 | H134: 0
G135: 99 | H135: 3
G136: 100 | H136: 0
G137: 101 | H137: 3
G138: 102 | H138: 0
G139: 103 | H139: 0
G140: 104 | H140: 0
G141: 105 | H141: 0
G142: 106 | H142: 0
G143: 107 | H143: 0
G144: 108 | H144: 3
G145: 109 | H145: 0
G146: 110 | H146: 0
G147: 111 | H147: 3
G148: 112 | H148: 0
G149: 113 | H149: 3
G150: 114 | H150: 3
G151: 115 | H151: 3
G152: 116 | H152: 0
G153: 117 | H153: 3
G154: 118 | H154: 0
G155: 119 | H155: 0
G156: 120 | H156: 0
G157: 121 | H157: 0
G158: 122 | H158: 0
G159: 123 | H159: 0
G160: 124 | H160: 0
G161: 125 | H161: 3
G162: 126 | H162: 0
G163: 127 | H163: 0
G164: 128 | H164: 3
G165: 129 | H165: 0
G166: 130 | H166: =IF(RAND()<=12/38,3,0) -> 3
G167: 131 | H167: 0
G168: 132 | H168: 0
G169: 133 | H169: 3
G170: 134 | H170: 0
G171: 135 | H171: 3
G172: 136 | H172: 0
G173: 137 | H173: 3
G174: 138 | H174: 3
G175: 139 | H175: 3
G176: 140 | H176: 0
G177: 141 | H177: 3
G178: 142 | H178: 3
G179: 143 | H179: 3
G180: 144 | H180: 0
G181: 145 | H181: 0
G182: 146 | H182: 0
G183: 147 | H183: 0
G184: 148 | H184: 3
G185: 149 | H185: 3
G186: 150 | H186: 0
G187: 151 | H187: 0
G188: 152 | H188: 3
G189: 153 | H189: 0
G190: 154 | H190: 0
G191: 155 | H191: 0
G192: 156 | H192: 0
G193: 157 | H193: 0
G194: 158 | H194: 0
G195: 159 | H195: 0
G196: 160 | H196: 0
G197: 161 | H197: 0
G198: 162 | H198: 0
G199: 163 | H199: 0
G200: 164 | H200: 0
G201: 165 | H201: 0
G202: 166 | H202: 3
G203: 167 | H203: 3
G204: 168 | H204: 3
G205: 169 | H205: 0
G206: 170 | H206: 0
G207: 171 | H207: 0
G208: 172 | H208: 0
G209: 173 | H209: 3
G210: 174 | H210: 0
... 126 more rows

Sheet Gambling
B1: Wagering "Systems"
B3: Is there a winning system for playing a casino game, when the odds favor the house?
B4: Sure - in theory.
B6: If you bet on "black" at the roulette table, your chances of winning are 18/38, a bit less
B7: than 50%. (When you win, you get your bet back and an equal additional amount.)
B9: So, bet $1. If you win, you're up a dollar. Go home.
B10: If you lose, bet $2 the next time. If you win, you're up -$1 + $2 = $1. Go home.
B11: If you lose, bet $4 the next time. If you win, you're up -$1 - $2 + $4 = $1. Go home.
B12: And so on, continually doubling your bet until you win. For sure, you'll eventually win,
B13: and so you make $1 with certainty!
B15: What's wrong here?
B18: The answer is simple: There's a positive probability that you'll lose anough times in a row
B19: that you run out of money, and can't make the next doubled bet. (Or, you'll hit the
B20: "house limit," the maximum bet allowed by the casino.)
B22: Say that you start with $1,000,000. After 19 losses you'll only have $475,713 left, but
B23: the system will require a bet of $524,288. You're screwed!
B25: Let's assume that you quit at this point. (So, your strategy is to start at $1, and
B26: keep doubling on losses. Go home after your first win, or quit after 19 losses.)
B27: What is the probability that you'll end up winning a dollar? What is your expected
B28: profit on a given night?
B30: =1-(20/38)^19 -> 0.9999949455 | C30: Pr( P=$1) | F30: p | G30: Pr(P=p)
F31: =-(2^19-1) -> -524287 | G31: =(20/38)^19 -> 5.05453935e-06
B32: Your odds of coming out ahead are | F32: 1 | G32: =1-G31 -> 0.9999949455
B33: almost 200,000:1 . But
B35: =SUMPRODUCT(F31:F32,G31:G32) -> -1.650034327 | C35: E[P]
B37: The doubling system (and related so-called "progressive" gambling systems) is
B38: seductive. You'll almost surely come out ahead. But the casinos love system players,
B39: since - across hundreds of thousands of players, over thousands of nights - enough
B40: system players lose BIG to more than compensate for the many who make a little
B41: profit.

Sheet A,B,C
B1: Juggling a Portfolio
B3: Shares in companies A, B, and C have expected rates of return over the next
B4: year of 10%, 11%, and 15%, respectively. One standard-deviation’s-worth of
B5: uncertainty in what each stock will return is 6%, 8%, and 10%. The returns on
B6: the stocks vary independently.
B8: What is the expected value and standard deviation of the rate of return (over
B9: the next year) on a portfolio consisting of equal dollar amounts invested in all
B10: three stocks?
D12: A | E12: B | F12: C
C13: E[ROR] | D13: 0.1 | E13: 0.11 | F13: 0.15
C14: StdDev(ROR) | D14: 0.06 | E14: 0.08 | F14: 0.1
C16: allocation | D16: =1/3 -> 0.3333333333 | E16: =1/3 -> 0.3333333333 | F16: =1/3 -> 0.3333333333
B19: E[RORportfolio] | D19: =SUMPRODUCT(D16:F16,D13:F13) -> 0.12
B20: StdDev(RORportfolio) | D20: =SQRT(SUMPRODUCT(D16:F16^2,D14:F14^2)) -> 0.04714045208
B22: Var( a∙RORA + b∙RORB + c∙RORC ) = a2∙Var(RORA) + b2∙Var(RORB) + c2∙Var(RORC)
B24: since the rates of return vary independently.
